[Event "Chpt Reg Jeunes Occitanie 2026 - Espalion"]
[Site "Espalion, France"]
[Round "5.1"]
[ECO "?"]
[Annotator "?"]
[TimeControl "1h30 + 30sec/cp"]

1. e4 {[%clk 1:30:57][%emt 0:00:02]} 1... Nc6 {[%clk 1:30:56][%emt 0:00:05]}
2. d4 {[%clk 1:30:56][%emt 0:00:31]} 2... d5 {[%clk 1:31:21][%emt 0:00:05]} 3.
e5 {[%clk 1:31:15][%emt 0:00:10]} 3... Bf5 {[%clk 1:31:46][%emt 0:00:06]} 4.
c3 {[%clk 1:30:55][%emt 0:00:50]} 4... e6 {[%clk 1:32:08][%emt 0:00:08]} 5.
Nd2 {[%clk 1:31:09][%emt 0:00:15]} 5... f6 {[%clk 1:30:36][%emt 0:02:02]} 6.
f4 {[%clk 1:30:53][%emt 0:00:46]} 6... h5 {[%clk 1:29:21][%emt 0:01:45]} 7.
Be2 {[%clk 1:29:00][%emt 0:02:22]} 7... h4 {[%clk 1:28:46][%emt 0:01:05]} 8.
b4 {[%clk 1:22:09][%emt 0:07:21]} 8... Nh6 {[%clk 1:25:46][%emt 0:03:30]} 9.
Nh3 {[%clk 1:16:43][%emt 0:05:56]} 9... Bxh3 {[%clk 1:19:16][%emt 0:07:00]}
10. Bh5+ {[%clk 1:11:36][%emt 0:05:37]} 10... Kd7 {[%clk 1:19:25][%emt
0:00:21]} 11. gxh3 {[%clk 1:11:49][%emt 0:00:17]} 11... Nf5 {[%clk
1:19:39][%emt 0:00:15]} 12. Nb3 {[%clk 1:10:14][%emt 0:02:05]} 12... Kc8
{[%clk 1:08:20][%emt 0:11:48]} 13. Bg4 {[%clk 1:05:03][%emt 0:05:43]} 13... g6
{[%clk 1:03:17][%emt 0:05:33]} 14. a4 {[%clk 0:58:53][%emt 0:06:40]} 14... a5
{[%clk 0:57:53][%emt 0:05:54]} 15. Nxa5 {[%clk 0:49:02][%emt 0:10:21]} 15...
Nxa5 {[%clk 0:58:04][%emt 0:00:19]} 16. bxa5 {[%clk 0:49:26][%emt 0:00:06]}
16... fxe5 {[%clk 0:55:21][%emt 0:03:13]} 17. fxe5 {[%clk 0:47:57][%emt
0:01:59]} 17... Be7 {[%clk 0:55:36][%emt 0:00:15]} 18. Rb1 {[%clk
0:45:35][%emt 0:02:52]} 18... Rxa5 {[%clk 0:54:31][%emt 0:01:35]} 19. Qb3
{[%clk 0:39:27][%emt 0:06:38]} 19... b6 {[%clk 0:54:36][%emt 0:00:26]} 20. O-O
{[%clk 0:38:14][%emt 0:01:42]} 20... Qd7 {[%clk 0:51:10][%emt 0:03:56]} 21.
Ra1 {[%clk 0:36:22][%emt 0:02:23]} 21... Kb7 {[%clk 0:51:05][%emt 0:00:34]}
22. Rf2 {[%clk 0:32:59][%emt 0:03:53]} 22... Rha8 {[%clk 0:48:42][%emt
0:02:53]} 23. Rfa2 {[%clk 0:32:46][%emt 0:00:43]} 23... Qd8 {[%clk
0:47:30][%emt 0:01:42]} 24. Bd2 {[%clk 0:30:10][%emt 0:03:05]} 24... Bg5
{[%clk 0:47:18][%emt 0:00:43]} 25. Bxf5 {[%clk 0:23:52][%emt 0:06:49]} 25...
gxf5 {[%clk 0:41:56][%emt 0:05:52]} 26. c4 {[%clk 0:19:49][%emt 0:04:32]}
26... Bxd2 {[%clk 0:41:03][%emt 0:01:22]} 27. Rxd2 {[%clk 0:20:11][%emt
0:00:09]} 27... Qg5+ {[%clk 0:41:25][%emt 0:00:07]} 28. Rg2 {[%clk
0:20:34][%emt 0:00:07]} 28... Qf4 {[%clk 0:41:21][%emt 0:00:35]} 29. Rd1
{[%clk 0:19:21][%emt 0:01:43]} 29... dxc4 {[%clk 0:38:23][%emt 0:03:28]} 30.
Qxc4 {[%clk 0:17:58][%emt 0:01:53]} 30... Rxe5 {[%clk 0:34:32][%emt 0:04:21]}
31. Rc1 {[%clk 0:16:35][%emt 0:01:53]} 31... Rd5 {[%clk 0:30:43][%emt 0:04:18]}
 32. Qc6+ {[%clk 0:16:17][%emt 0:00:49]} 32... Ka7 {[%clk 0:30:59][%emt
0:00:13]} 33. Qxc7+ {[%clk 0:06:05][%emt 0:10:44]} 33... Qxc7 {[%clk
0:31:24][%emt 0:00:06]} 34. Rxc7+ {[%clk 0:06:28][%emt 0:00:07]} 34... Ka6
{[%clk 0:31:37][%emt 0:00:17]} 35. Rg6 {[%clk 0:05:58][%emt 0:01:00]} 35...
Rxd4 {[%clk 0:30:53][%emt 0:01:14]} 36. Rxe6 {[%clk 0:06:16][%emt 0:00:12]}
36... Rg8+ {[%clk 0:26:39][%emt 0:04:44]} 37. Kf2 {[%clk 0:06:37][%emt
0:00:08]} 37... Rd2+ {[%clk 0:26:28][%emt 0:00:41]} 38. Ke3 {[%clk
0:06:45][%emt 0:00:23]} 38... Rxh2 {[%clk 0:26:44][%emt 0:00:13]} 39. Ree7
{[%clk 0:06:58][%emt 0:00:17]} 39... Rxh3+ {[%clk 0:26:51][%emt 0:00:22]} 40.
Kf4 {[%clk 0:07:21][%emt 0:00:07]} 40... Ka5 {[%clk 0:24:30][%emt 0:02:50]}
41. Ra7+ {[%clk 0:07:34][%emt 0:00:18]} 41... Kb4 {[%clk 0:24:46][%emt
0:00:13]} 42. Re5 {[%clk 0:05:10][%emt 0:02:54]} 42... Rb3 {[%clk
0:18:45][%emt 0:06:30]} 43. a5 {[%clk 0:02:11][%emt 0:03:30]} 43... b5 {[%clk
0:17:39][%emt 0:01:37]} 44. a6 {[%clk 0:01:40][%emt 0:01:01]} 44... Ka5 {[%clk
0:17:37][%emt 0:00:31]} 45. Re6 {[%clk 0:00:54][%emt 0:01:16]} 45... Rh8
{[%clk 0:16:19][%emt 0:01:48]} 46. Rd7 {[%clk 0:01:04][%emt 0:00:20]} 46... h3
{[%clk 0:15:51][%emt 0:00:57]} 47. Rd1 {[%clk 0:01:19][%emt 0:00:15]} 47... h2
{[%clk 0:14:58][%emt 0:01:24]} 48. a7 {[%clk 0:01:32][%emt 0:00:18]} 48...
Rbh3 {[%clk 0:13:32][%emt 0:01:56]} 49. Ra1+ {[%clk 0:01:36][%emt 0:00:26]}
49... Kb4 {[%clk 0:13:58][%emt 0:00:04]} 50. Rh1 {[%clk 0:00:46][%emt 0:01:19]}
 50... Ra8 {[%clk 0:11:36][%emt 0:02:52]} 51. Re7 {[%clk 0:00:58][%emt
0:00:18]} 51... Ka4 {[%clk 0:10:00][%emt 0:02:05]} 52. Ra1+ {[%clk
0:01:11][%emt 0:00:18]} 52... Ra3 {[%clk 0:10:09][%emt 0:00:19]} 53. Rh1
{[%clk 0:01:09][%emt 0:00:33]} 53... Ra2 {[%clk 0:09:10][%emt 0:01:30]} 54.
Kxf5 {[%clk 0:01:21][%emt 0:00:18]} 54... b4 {[%clk 0:09:23][%emt 0:00:17]}
55. Rb7 {[%clk 0:01:26][%emt 0:00:25]} 55... Rb2 {[%clk 0:05:15][%emt 0:04:39]}
 56. Ra1+ {[%clk 0:01:28][%emt 0:00:28]} 56... Kb3 {[%clk 0:05:17][%emt
0:00:28]} 57. Rf1 {[%clk 0:00:40][%emt 0:01:17]} 57... Rf2+ {[%clk
0:04:46][%emt 0:01:02]} 58. Rxf2 {[%clk 0:00:41][%emt 0:00:29]} 58... h1=Q
{[%clk 0:05:08][%emt 0:00:07]} 59. Rb8 {[%clk 0:00:41][%emt 0:00:30]} 59...
Rxa7 {[%clk 0:05:21][%emt 0:00:17]} 60. Rf4 {[%clk 0:01:02][%emt 0:00:09]}
60... Rf7+ {[%clk 0:05:24][%emt 0:00:27]} 0-1

[White "FOPPOLO, Marvin"]
[Black "POSOCCO DE GRANDI, Marc"]
[WhiteElo "1880"]
[BlackElo "1871"]
[Result "1-0"]
[Date "2026.03.06"]

[Event "Chpt Reg Jeunes Occitanie 2026 - Espalion"]
[Site "Espalion, France"]
[Round "5.2"]
[ECO "?"]
[Annotator "?"]
[TimeControl "1h30 + 30sec/cp"]

1. e4 {[%clk 1:30:59]} 1... c5 {[%clk 1:30:53][%emt 0:00:07]} 2. Nf3 {[%clk
1:31:28][%emt 0:00:01]} 2... Nc6 {[%clk 1:31:13][%emt 0:00:10]} 3. Bb5 {[%clk
1:31:56][%emt 0:00:01]} 3... e5 {[%clk 1:31:24][%emt 0:00:19]} 4. O-O {[%clk
1:32:17][%emt 0:00:09]} 4... Bd6 {[%clk 1:31:40][%emt 0:00:14]} 5. Re1 {[%clk
1:31:07][%emt 0:01:40]} 5... a6 {[%clk 1:31:33][%emt 0:00:38]} 6. Bf1 {[%clk
1:31:22][%emt 0:00:15]} 6... b5 {[%clk 1:30:11][%emt 0:01:51]} 7. c3 {[%clk
1:26:38][%emt 0:05:14]} 7... c4 {[%clk 1:26:49][%emt 0:03:53]} 8. b3 {[%clk
1:23:14][%emt 0:03:53]} 8... Na5 {[%clk 1:25:31][%emt 0:01:47]} 9. d4 {[%clk
1:20:53][%emt 0:02:50]} 9... cxd3 {[%clk 1:25:43][%emt 0:00:19]} 10. Qxd3
{[%clk 1:21:21][%emt 0:00:02]} 10... Qc7 {[%clk 1:25:36][%emt 0:00:37]} 11.
Na3 {[%clk 1:13:50][%emt 0:08:01]} 11... Bb7 {[%clk 1:08:39][%emt 0:17:28]}
12. Nc2 {[%clk 1:11:54][%emt 0:02:26]} 12... Rc8 {[%clk 1:01:33][%emt 0:07:35]}
 13. Ne3 {[%clk 1:03:20][%emt 0:09:04]} 13... Ne7 {[%clk 0:54:19][%emt
0:07:45]} 14. Nh4 {[%clk 0:56:01][%emt 0:07:49]} 14... Nac6 {[%clk
0:28:32][%emt 0:26:17]} 15. Rd1 {[%clk 0:29:17][%emt 0:27:13]} 15... Bc5
{[%clk 0:26:09][%emt 0:02:54]} 16. Nhf5 {[%clk 0:28:33][%emt 0:01:13]} 16...
Nxf5 {[%clk 0:22:08][%emt 0:04:32]} 17. Nxf5 {[%clk 0:29:01][%emt 0:00:02]}
17... O-O {[%clk 0:16:55][%emt 0:05:43]} 18. Bh6 {[%clk 0:26:16][%emt 0:03:15]}
 18... Qb6 {[%clk 0:06:53][%emt 0:10:32]} 19. Rd2 {[%clk 0:22:36][%emt
0:04:11]} 19... g6 {[%clk 0:04:55][%emt 0:02:27]} 20. Bxf8 {[%clk
0:22:44][%emt 0:00:22]} 20... Bxf8 {[%clk 0:04:51][%emt 0:00:34]} 21. Nd6
{[%clk 0:22:42][%emt 0:00:31]} 21... Rb8 {[%clk 0:04:23][%emt 0:00:59]} 22.
Qf3 {[%clk 0:21:07][%emt 0:02:04]} 22... Bxd6 {[%clk 0:02:18][%emt 0:02:35]}
23. Rxd6 {[%clk 0:21:35][%emt 0:00:03]} 23... Qc5 {[%clk 0:02:36][%emt
0:00:12]} 24. Rxd7 {[%clk 0:21:44][%emt 0:00:21]} 24... f5 {[%clk
0:01:27][%emt 0:01:39]} 25. Qh3 {[%clk 0:21:55][%emt 0:00:19]} 25... Ne7
{[%clk 0:01:00][%emt 0:00:58]} 26. Qh4 {[%clk 0:21:54][%emt 0:00:30]} 26...
Kf8 {[%clk 0:00:36][%emt 0:00:54]} 27. Qf6+ {[%clk 0:21:35][%emt 0:00:49]}
27... Ke8 {[%clk 0:00:47][%emt 0:00:19]} 28. Rad1 {[%emt 0:01:26]} 1-0

[White "DECLERCK, Timothee"]
[Black "DARTHENAY, Antoine"]
[WhiteElo "1854"]
[BlackElo "1823"]
[Result "1-0"]
[Date "2026.03.06"]

[Event "Chpt Reg Jeunes Occitanie 2026 - Espalion"]
[Site "Espalion, France"]
[Round "5.3"]
[ECO "?"]
[Annotator "?"]
[TimeControl "1h30 + 30sec/cp"]

1. d4 {[%clk 1:30:55][%emt 0:00:05]} 1... d5 {[%clk 1:30:55][%emt 0:00:06]} 2.
c4 {[%clk 1:31:16][%emt 0:00:09]} 2... e6 {[%clk 1:31:20][%emt 0:00:05]} 3.
Nc3 {[%clk 1:31:32][%emt 0:00:13]} 3... Nf6 {[%clk 1:31:45][%emt 0:00:06]} 4.
cxd5 {[%clk 1:31:45][%emt 0:00:17]} 4... exd5 {[%clk 1:32:07][%emt 0:00:08]}
5. Bg5 {[%clk 1:31:59][%emt 0:00:15]} 5... Nbd7 {[%clk 1:32:28][%emt 0:00:10]}
6. e3 {[%clk 1:32:16][%emt 0:00:13]} 6... c6 {[%clk 1:32:50][%emt 0:00:08]} 7.
Bd3 {[%clk 1:32:29][%emt 0:00:16]} 7... Be7 {[%clk 1:32:35][%emt 0:00:45]} 8.
Nge2 {[%clk 1:32:44][%emt 0:00:15]} 8... O-O {[%clk 1:31:20][%emt 0:01:45]} 9.
O-O {[%clk 1:33:03][%emt 0:00:11]} 9... Ne4 {[%clk 1:26:49][%emt 0:05:01]} 10.
Bxe7 {[%clk 1:30:23][%emt 0:03:11]} 10... Qxe7 {[%clk 1:27:12][%emt 0:00:07]}
11. Bxe4 {[%clk 1:19:05][%emt 0:11:47]} 11... dxe4 {[%clk 1:27:29][%emt
0:00:13]} 12. Qc2 {[%clk 1:16:03][%emt 0:03:32]} 12... f5 {[%clk 1:19:30][%emt
0:08:29]} 13. Rfd1 {[%clk 1:09:00][%emt 0:07:34]} 13... Nf6 {[%clk
1:17:16][%emt 0:02:44]} 14. d5 {[%clk 1:02:53][%emt 0:06:37]} 14... cxd5
{[%clk 1:16:14][%emt 0:01:32]} 15. Nxd5 {[%clk 1:03:19][%emt 0:00:04]} 15...
Nxd5 {[%clk 1:16:12][%emt 0:00:32]} 16. Rxd5 {[%clk 1:03:47][%emt 0:00:02]}
16... Be6 {[%clk 1:15:31][%emt 0:01:11]} 17. Rd4 {[%clk 0:56:52][%emt 0:07:25]}
 17... Rac8 {[%clk 1:07:24][%emt 0:08:37]} 18. Qa4 {[%clk 0:53:42][%emt
0:03:40]} 18... Rc6 {[%clk 0:59:32][%emt 0:08:22]} 19. h3 {[%clk 0:47:07][%emt
0:07:06]} 19... Rfc8 {[%clk 0:57:39][%emt 0:02:22]} 20. Nf4 {[%clk
0:39:38][%emt 0:07:59]} 20... Rc2 {[%clk 0:38:31][%emt 0:19:38]} 21. Nxe6
{[%clk 0:30:25][%emt 0:09:44]} 21... Qxe6 {[%clk 0:38:28][%emt 0:00:33]} 22.
Qxa7 {[%clk 0:25:41][%emt 0:05:14]} 22... Rxb2 {[%clk 0:36:32][%emt 0:02:26]}
23. Rad1 {[%clk 0:24:34][%emt 0:01:37]} 23... Qxa2 {[%clk 0:35:02][%emt
0:02:00]} 24. Rd8+ {[%clk 0:23:57][%emt 0:01:08]} 24... Rxd8 {[%clk
0:35:24][%emt 0:00:08]} 25. Rxd8+ {[%clk 0:24:23][%emt 0:00:04]} 25... Kf7
{[%clk 0:35:47][%emt 0:00:06]} 26. Qd4 {[%clk 0:16:40][%emt 0:08:13]} 26...
Rb1+ {[%clk 0:13:10][%emt 0:23:07]} 27. Kh2 {[%clk 0:17:01][%emt 0:00:08]}
27... Qa1 {[%clk 0:13:25][%emt 0:00:15]} 28. Qd6 {[%clk 0:12:43][%emt 0:04:49]}
 28... Rh1+ {[%clk 0:05:33][%emt 0:08:22]} 29. Kg3 {[%clk 0:13:11][%emt
0:00:02]} 29... f4+ {[%clk 0:05:53][%emt 0:00:10]} 30. Qxf4+ {[%clk
0:03:56][%emt 0:09:45]} 30... Qf6 {[%clk 0:05:51][%emt 0:00:32]} 31. Rd7+
{[%clk 0:04:24][%emt 0:00:02]} 31... Ke8 {[%clk 0:05:59][%emt 0:00:22]} 32.
Qxf6 {[%clk 0:04:34][%emt 0:00:21]} 32... gxf6 {[%clk 0:06:16][%emt 0:00:13]}
33. Rxb7 {[%clk 0:04:56][%emt 0:00:07]} 33... h6 {[%clk 0:05:57][%emt 0:00:48]}
 34. Rb4 {[%clk 0:04:57][%emt 0:00:31]} 34... Ra1 {[%clk 0:05:29][%emt
0:00:58]} 35. Rxe4+ {[%clk 0:05:21][%emt 0:00:06]} 35... Kf7 {[%clk
0:05:52][%emt 0:00:06]} 36. Kh4 {[%clk 0:04:46][%emt 0:01:03]} 36... Ra2
{[%clk 0:05:56][%emt 0:00:26]} 37. Rf4 {[%clk 0:05:05][%emt 0:00:13]} 37...
Kg6 {[%clk 0:06:17][%emt 0:00:09]} 38. g4 {[%clk 0:04:41][%emt 0:00:54]} 38...
Ra1 {[%clk 0:06:27][%emt 0:00:20]} 39. Kg3 {[%clk 0:04:39][%emt 0:00:32]}
39... Rg1+ {[%clk 0:06:37][%emt 0:00:20]} 40. Kh2 {[%clk 0:04:55][%emt
0:00:13]} 40... Re1 {[%clk 0:06:56][%emt 0:00:12]} 41. h4 {[%clk 0:03:40][%emt
0:01:46]} 41... Ra1 {[%clk 0:06:48][%emt 0:00:37]} 42. Kg2 {[%clk
0:03:47][%emt 0:00:24]} 42... Ra2 {[%clk 0:06:53][%emt 0:00:25]} 43. Kf3
{[%clk 0:04:11][%emt 0:00:06]} 43... Ra1 {[%clk 0:06:59][%emt 0:00:24]} 44.
h5+ {[%clk 0:04:28][%emt 0:00:12]} 44... Kf7 {[%clk 0:07:00][%emt 0:00:29]}
45. Rb4 {[%clk 0:04:45][%emt 0:00:13]} 45... Ra3 {[%clk 0:07:00][%emt 0:00:30]}
 46. Rb7+ {[%clk 0:05:08][%emt 0:00:07]} 46... Kg8 {[%clk 0:07:08][%emt
0:00:21]} 47. Kf4 {[%clk 0:05:30][%emt 0:00:09]} 47... Ra5 {[%clk
0:07:29][%emt 0:00:09]} 48. Rd7 {[%clk 0:05:24][%emt 0:00:36]} 48... Rb5
{[%clk 0:07:42][%emt 0:00:17]} 49. Rd6 {[%clk 0:05:25][%emt 0:00:29]} 49...
Kf7 {[%clk 0:07:57][%emt 0:00:15]} 50. f3 {[%clk 0:05:24][%emt 0:00:31]} 50...
Rb7 {[%clk 0:07:22][%emt 0:01:06]} 51. Rd5 {[%clk 0:05:30][%emt 0:00:25]}
51... Rb3 {[%clk 0:07:36][%emt 0:00:15]} 52. Rd7+ {[%clk 0:05:43][%emt
0:00:18]} 52... Kg8 {[%clk 0:07:55][%emt 0:00:10]} 53. e4 {[%clk 0:05:38][%emt
0:00:36]} 53... Rb5 {[%clk 0:08:09][%emt 0:00:15]} 54. Rd5 {[%clk
0:05:57][%emt 0:00:12]} 54... Rb3 {[%clk 0:08:33][%emt 0:00:06]} 55. Rd7
{[%clk 0:06:04][%emt 0:00:23]} 55... Rb5 {[%clk 0:08:50][%emt 0:00:13]} 56.
Ra7 {[%clk 0:06:13][%emt 0:00:21]} 56... Rc5 {[%clk 0:08:57][%emt 0:00:24]}
57. Rb7 {[%clk 0:05:44][%emt 0:00:59]} 57... Ra5 {[%clk 0:09:08][%emt 0:00:17]}
 58. Rb8+ {[%clk 0:05:51][%emt 0:00:25]} 58... Kf7 {[%clk 0:09:22][%emt
0:00:15]} 59. Rd8 {[%clk 0:06:14][%emt 0:00:07]} 59... Rb5 {[%clk
0:09:40][%emt 0:00:13]} 60. Rd5 {[%clk 0:06:41][%emt 0:00:03]} 60... Rb3
{[%clk 0:10:03][%emt 0:00:07]} 61. e5 {[%clk 0:06:41][%emt 0:00:30]} 61...
fxe5+ {[%clk 0:09:46][%emt 0:00:46]} 62. Rxe5 {[%clk 0:07:03][%emt 0:00:08]}
62... Kf6 {[%clk 0:10:05][%emt 0:00:12]} 63. Re4 {[%clk 0:07:20][%emt 0:00:12]}
 63... Rb5 {[%clk 0:10:08][%emt 0:00:26]} 64. Ra4 {[%clk 0:07:43][%emt
0:00:08]} 64... Rb6 {[%clk 0:10:27][%emt 0:00:11]} 65. Kg3 {[%clk
0:07:53][%emt 0:00:20]} 65... Rb3 {[%clk 0:10:29][%emt 0:00:28]} 66. Ra6+
{[%clk 0:08:16][%emt 0:00:08]} 66... Kg7 {[%clk 0:10:43][%emt 0:00:15]} 67.
Rg6+ {[%clk 0:08:40][%emt 0:00:06]} 67... Kh7 {[%clk 0:11:01][%emt 0:00:12]}
68. Re6 {[%clk 0:09:00][%emt 0:00:10]} 68... Kg7 {[%clk 0:11:12][%emt 0:00:19]}
 69. Kf4 {[%clk 0:09:21][%emt 0:00:09]} 69... Rb5 {[%clk 0:11:08][%emt
0:00:34]} 70. Re5 {[%clk 0:09:43][%emt 0:00:08]} 70... Rb3 {[%clk
0:11:14][%emt 0:00:24]} 71. Ke4 {[%clk 0:10:00][%emt 0:00:13]} 71... Rb4+
{[%clk 0:11:35][%emt 0:00:09]} 72. Kf5 {[%clk 0:10:24][%emt 0:00:08]} 72...
Kf7 {[%clk 0:11:51][%emt 0:00:12]} 73. Ra5 {[%clk 0:10:48][%emt 0:00:06]}
73... Rb7 {[%clk 0:12:10][%emt 0:00:10]} 74. f4 {[%clk 0:11:01][%emt 0:00:18]}
74... Rc7 {[%clk 0:12:27][%emt 0:00:13]} 75. Rb5 {[%clk 0:11:17][%emt 0:00:15]}
 75... Ra7 {[%clk 0:12:49][%emt 0:00:08]} 76. g5 {[%clk 0:10:31][%emt 0:01:15]}
 76... hxg5 {[%clk 0:13:01][%emt 0:00:17]} 77. fxg5 {[%clk 0:10:58][%emt
0:00:04]} 77... Rc7 {[%clk 0:13:11][%emt 0:00:20]} 78. g6+ {[%clk
0:11:01][%emt 0:00:27]} 78... Kg7 {[%clk 0:13:29][%emt 0:00:11]} 79. Kg5
{[%clk 0:11:19][%emt 0:00:13]} 79... Rc8 {[%clk 0:13:08][%emt 0:00:50]} 80.
h6+ {[%clk 0:10:50][%emt 0:00:59]} 80... Kg8 {[%clk 0:13:32][%emt 0:00:06]}
81. h7+ {[%clk 0:10:40][%emt 0:00:40]} 81... Kh8 {[%clk 0:13:51][%emt 0:00:11]}
 82. Kh6 {[%clk 0:10:59][%emt 0:00:12]} 1-0

[White "AK, Maxime"]
[Black "VINCENT, Valentin"]
[WhiteElo "1800"]
[BlackElo "1639"]
[Result "1-0"]
[Date "2026.03.06"]

[Event "Chpt Reg Jeunes Occitanie 2026 - Espalion"]
[Site "Espalion, France"]
[Round "5.4"]
[ECO "?"]
[Annotator "?"]
[TimeControl "1h30 + 30sec/cp"]

1. c4 {[%clk 1:30:57][%emt 0:00:03]} 1... c6 {[%clk 1:30:48][%emt 0:00:12]} 2.
e4 {[%clk 1:31:18][%emt 0:00:08]} 2... d5 {[%clk 1:30:31][%emt 0:00:49]} 3.
cxd5 {[%clk 1:31:37][%emt 0:00:11]} 3... cxd5 {[%clk 1:30:53][%emt 0:00:07]}
4. exd5 {[%clk 1:32:02][%emt 0:00:05]} 4... Qxd5 {[%clk 1:31:08][%emt 0:00:13]}
 5. Nc3 {[%clk 1:32:24][%emt 0:00:09]} 5... Qd8 {[%clk 1:31:26][%emt 0:00:13]}
6. Nf3 {[%clk 1:32:24][%emt 0:00:31]} 6... Bg4 {[%clk 1:30:32][%emt 0:01:23]}
7. Qa4+ {[%clk 1:32:32][%emt 0:00:17]} 7... Bd7 {[%clk 1:30:49][%emt 0:00:19]}
8. Qb3 {[%clk 1:31:33][%emt 0:01:28]} 8... Nc6 {[%clk 1:25:42][%emt 0:05:38]}
9. d4 {[%clk 1:30:14][%emt 0:01:49]} 9... Qb6 {[%clk 1:14:12][%emt 0:11:59]}
10. Qxb6 {[%clk 1:19:43][%emt 0:11:01]} 10... axb6 {[%clk 1:14:30][%emt
0:00:11]} 11. Nd5 {[%clk 1:18:46][%emt 0:01:28]} 11... Ra7 {[%clk
0:57:43][%emt 0:17:17]} 12. Bb5 {[%clk 1:05:30][%emt 0:13:46]} 12... Nf6
{[%clk 0:54:13][%emt 0:04:00]} 13. Nxb6 {[%clk 1:03:20][%emt 0:02:40]} 13...
Nb4 {[%clk 0:49:47][%emt 0:04:56]} 14. Nxd7 {[%clk 1:02:10][%emt 0:01:40]}
14... Nxd7 {[%clk 0:49:13][%emt 0:01:05]} 15. Ne5 {[%clk 0:56:55][%emt
0:05:44]} 15... Nc2+ {[%clk 0:39:52][%emt 0:09:50]} 16. Kd1 {[%clk
0:56:51][%emt 0:00:33]} 16... Nxa1 {[%clk 0:39:51][%emt 0:00:34]} 17. Bxd7+
{[%clk 0:56:56][%emt 0:00:24]} 17... Kd8 {[%clk 0:39:43][%emt 0:00:38]} 18.
Bb5 {[%clk 0:56:34][%emt 0:00:51]} 18... Rg8 {[%clk 0:32:55][%emt 0:07:19]}
19. Nxf7+ {[%clk 0:56:13][%emt 0:00:50]} 19... Kc8 {[%clk 0:31:52][%emt
0:01:33]} 20. Bc4 {[%clk 0:55:47][%emt 0:00:56]} 20... Ra4 {[%clk
0:27:23][%emt 0:04:58]} 21. b3 {[%clk 0:54:48][%emt 0:01:30]} 21... Rxa2
{[%clk 0:26:02][%emt 0:01:51]} 22. Bf4 {[%clk 0:51:11][%emt 0:04:08]} 22... b6
{[%clk 0:20:54][%emt 0:05:38]} 23. Be6+ {[%clk 0:50:48][%emt 0:00:51]} 23...
Kb7 {[%clk 0:21:04][%emt 0:00:21]} 24. Nd8+ {[%clk 0:51:01][%emt 0:00:17]}
24... Ka6 {[%clk 0:20:31][%emt 0:01:03]} 25. Bxg8 {[%clk 0:50:54][%emt
0:00:37]} 25... Rxf2 {[%clk 0:18:58][%emt 0:02:03]} 26. Bg3 {[%clk
0:50:11][%emt 0:01:14]} 26... Rxg2 {[%emt 0:02:00]} 27. Ne6 {[%clk
0:50:30][%emt 0:00:02]} 27... Ra2 {[%clk 0:17:20][%emt 0:00:45]} 28. Nxf8
{[%clk 0:50:34][%emt 0:00:26]} 28... Nxb3 {[%clk 0:17:39][%emt 0:00:12]} 29.
Rf1 {[%emt 0:10:45]} 1-0

[White "COLLAS, Anthony"]
[Black "DURKA-VINCENDET, Yan"]
[WhiteElo "1672"]
[BlackElo "1761"]
[Result "1/2-1/2"]
[Date "2026.03.06"]